[Event "Titled Tuesday Blitz January 03 Early 2023"]
[White "Narayanan, Srinath"]
[Black "Nouri, Alekhine"]
[WhiteFideId "5018420"]
[BlackFideId "5216184"]
[WhiteElo "2559"]
[BlackElo "2257"]
[Result "1-0"]
[Round "09"]
[TimeControl "180+2"]
[Date "2023.01.03"]
[WhiteClock "0:01:39"]
[BlackClock "0:01:54"]

1. d4 {[%clk 0:03:00]}  Nf6 {[%clk 0:02:59]} 2. Nf3 {[%clk 0:03:00]}  c5 {[%clk 0:02:59]} 3. d5 {[%clk 0:02:59]}  b5 {[%clk 0:02:59]} 4. c4 {[%clk 0:02:57]}  b4 {[%clk 0:02:57]} 5. Nbd2 {[%clk 0:02:55]}  d6 {[%clk 0:02:56]} 6. e4 {[%clk 0:02:56]}  g6 {[%clk 0:02:56]} 7. Bd3 {[%clk 0:02:56]}  Bg7 {[%clk 0:02:57]} 8. O-O {[%clk 0:02:57]}  O-O {[%clk 0:02:57]} 9. Re1 {[%clk 0:02:56]}  Bg4 {[%clk 0:02:57]} 10. h3 {[%clk 0:02:53]}  Bxf3 {[%clk 0:02:56]} 11. Nxf3 {[%clk 0:02:54]}  Nfd7 {[%clk 0:02:57]} 12. Rb1 {[%clk 0:02:52]}  a5 {[%clk 0:02:57]} 13. b3 {[%clk 0:02:52]}  a4 {[%clk 0:02:56]} 14. Bb2 {[%clk 0:02:52]}  axb3 {[%clk 0:02:51]} 15. axb3 {[%clk 0:02:46]}  Bxb2 {[%clk 0:02:50]} 16. Rxb2 {[%clk 0:02:47]}  f6 {[%clk 0:02:50]} 17. Qc1 {[%clk 0:02:47]}  Ne5 {[%clk 0:02:49]} 18. Be2 {[%clk 0:02:43]}  Nbd7 {[%clk 0:02:49]} 19. Nh2 {[%clk 0:02:42]}  Ra3 {[%clk 0:02:48]} 20. f4 {[%clk 0:02:42]}  Nf7 {[%clk 0:02:48]} 21. Bg4 {[%clk 0:02:43]}  Kg7 {[%clk 0:02:38]} 22. Nf3 {[%clk 0:02:42]}  h5 {[%clk 0:02:38]} 23. Be6 {[%clk 0:02:43]}  Rh8 {[%clk 0:02:28]} 24. e5 {[%clk 0:02:39]}  dxe5 {[%clk 0:02:27]} 25. Bxf7 {[%clk 0:02:36]}  Kxf7 {[%clk 0:02:27]} 26. fxe5 {[%clk 0:02:36]}  Kg7 {[%clk 0:02:27]} 27. exf6+ {[%clk 0:02:23]}  exf6 {[%clk 0:02:28]} 28. Qe3 {[%clk 0:02:18]}  Rf8 {[%clk 0:02:26]} 29. Rbe2 {[%clk 0:02:17]}  Rf7 {[%clk 0:02:25]} 30. Qd3 {[%clk 0:02:16]}  Ra6 {[%clk 0:02:17]} 31. Re8 {[%clk 0:02:10]}  Qc7 {[%clk 0:02:09]} 32. Qe3 {[%clk 0:01:43]}  Qd6 {[%clk 0:01:54]} 33. Re6 {[%clk 0:01:39]} 1-0


[Site "https://www.chess.com"]

[Event "Titled Tuesday Blitz January 03 Early 2023"]
[White "Salimova, Nurgyul"]
[Black "Kamsky, Gata"]
[WhiteFideId "2915138"]
[BlackFideId "2000024"]
[WhiteElo "2391"]
[BlackElo "2665"]
[Result "0-1"]
[Round "09"]
[TimeControl "180+2"]
[Date "2023.01.03"]
[WhiteClock "0:00:03"]
[BlackClock "0:00:12"]

1. d4 {[%clk 0:03:00]}  Nf6 {[%clk 0:02:44]} 2. Nf3 {[%clk 0:03:00]}  d5 {[%clk 0:02:42]} 3. c4 {[%clk 0:03:00]}  c6 {[%clk 0:02:32]} 4. Nc3 {[%clk 0:02:49]}  a6 {[%clk 0:02:32]} 5. cxd5 {[%clk 0:02:39]}  cxd5 {[%clk 0:02:31]} 6. Bf4 {[%clk 0:02:38]}  Nc6 {[%clk 0:02:28]} 7. e3 {[%clk 0:02:38]}  Bg4 {[%clk 0:02:27]} 8. Be2 {[%clk 0:02:32]}  Bxf3 {[%clk 0:02:26]} 9. Bxf3 {[%clk 0:02:32]}  e6 {[%clk 0:02:27]} 10. O-O {[%clk 0:02:27]}  Bd6 {[%clk 0:02:27]} 11. Bxd6 {[%clk 0:02:15]}  Qxd6 {[%clk 0:02:26]} 12. Rc1 {[%clk 0:02:14]}  O-O {[%clk 0:02:25]} 13. Na4 {[%clk 0:02:09]}  Nd7 {[%clk 0:02:22]} 14. Qd2 {[%clk 0:01:58]}  Rfc8 {[%clk 0:02:21]} 15. Be2 {[%clk 0:01:55]}  Ne7 {[%clk 0:02:05]} 16. Bd3 {[%clk 0:01:48]}  h6 {[%clk 0:02:02]} 17. b4 {[%clk 0:01:27]}  Rxc1 {[%clk 0:01:06]} 18. Rxc1 {[%clk 0:01:28]}  Rc8 {[%clk 0:01:06]} 19. Rxc8+ {[%clk 0:01:24]}  Nxc8 {[%clk 0:01:05]} 20. Nc5 {[%clk 0:01:22]}  Qc7 {[%clk 0:00:58]} 21. h3 {[%clk 0:01:07]}  Nd6 {[%clk 0:00:57]} 22. Qe2 {[%clk 0:00:39]}  Nb6 {[%clk 0:00:53]} 23. Qg4 {[%clk 0:00:34]}  Qe7 {[%clk 0:00:48]} 24. Qf4 {[%clk 0:00:31]}  Nbc4 {[%clk 0:00:42]} 25. e4 {[%clk 0:00:22]}  dxe4 {[%clk 0:00:36]} 26. Bxc4 {[%clk 0:00:20]}  Nxc4 {[%clk 0:00:36]} 27. Qxe4 {[%clk 0:00:19]}  Nd6 {[%clk 0:00:32]} 28. Qe5 {[%clk 0:00:17]}  Qd8 {[%clk 0:00:27]} 29. d5 {[%clk 0:00:15]}  Nc4 {[%clk 0:00:23]} 30. Qd4 {[%clk 0:00:13]}  b5 {[%clk 0:00:19]} 31. Nxa6 {[%clk 0:00:11]}  exd5 {[%clk 0:00:18]} 32. Nc5 {[%clk 0:00:10]}  Qd6 {[%clk 0:00:17]} 33. Nd3 {[%clk 0:00:07]}  g5 {[%clk 0:00:15]} 34. g3 {[%clk 0:00:06]}  Qe6 {[%clk 0:00:15]} 35. h4 {[%clk 0:00:05]}  Qe4 {[%clk 0:00:14]} 36. Qxe4 {[%clk 0:00:04]}  dxe4 {[%clk 0:00:14]} 37. Nc5 {[%clk 0:00:05]}  f5 {[%clk 0:00:13]} 38. hxg5 {[%clk 0:00:05]}  hxg5 {[%clk 0:00:13]} 39. Ne6 {[%clk 0:00:05]}  Kf7 {[%clk 0:00:11]} 40. Nxg5+ {[%clk 0:00:04]}  Kf6 {[%clk 0:00:11]} 41. Nh3 {[%clk 0:00:04]}  Ke5 {[%clk 0:00:11]} 42. Nf4 {[%clk 0:00:03]}  Kd4 {[%clk 0:00:12]} 43. Ne6+ {[%clk 0:00:03]}  Kc3 {[%clk 0:00:12]} 44. Nc7 {[%clk 0:00:03]}  Kxb4 {[%clk 0:00:12]} 45. Nd5+ {[%clk 0:00:04]}  Ka3 {[%clk 0:00:12]} 46. Ne7 {[%clk 0:00:03]}  Nd6 {[%clk 0:00:12]} 47. g4 {[%clk 0:00:03]}  fxg4 {[%clk 0:00:11]} 48. Kg2 {[%clk 0:00:03]}  Kxa2 {[%clk 0:00:12]} 49. Nd5 {[%clk 0:00:04]}  Kb3 {[%clk 0:00:11]} 50. Kg3 {[%clk 0:00:04]}  Kc4 {[%clk 0:00:12]} 51. Ne3+ {[%clk 0:00:05]}  Kd3 {[%clk 0:00:11]} 52. Kxg4 {[%clk 0:00:05]}  b4 {[%clk 0:00:11]} 53. Kf4 {[%clk 0:00:04]}  b3 {[%clk 0:00:12]} 54. Nd1 {[%clk 0:00:05]}  Nc4 {[%clk 0:00:12]} 55. f3 {[%clk 0:00:03]}  e3 {[%clk 0:00:12]} 0-1


[Site "https://www.chess.com"]

[Event "Titled Tuesday Blitz January 03 Early 2023"]
[White "HSH1987"]
[Black "Indjic, Aleksandar"]
[BlackFideId "911925"]
[WhiteElo "2675"]
[BlackElo "2618"]
[Result "0-1"]
[Round "09"]
[TimeControl "180+2"]
[Date "2023.01.03"]
[WhiteClock "0:00:24"]
[BlackClock "0:00:55"]

1. Nf3 {[%clk 0:03:00]}  c5 {[%clk 0:02:59]} 2. g3 {[%clk 0:03:01]}  Nc6 {[%clk 0:02:59]} 3. Bg2 {[%clk 0:03:00]}  Nf6 {[%clk 0:02:58]} 4. O-O {[%clk 0:02:59]}  e5 {[%clk 0:02:59]} 5. c4 {[%clk 0:02:59]}  d5 {[%clk 0:02:59]} 6. cxd5 {[%clk 0:02:59]}  Nxd5 {[%clk 0:02:58]} 7. Nc3 {[%clk 0:02:59]}  Nc7 {[%clk 0:02:58]} 8. d3 {[%clk 0:02:56]}  Be7 {[%clk 0:02:57]} 9. Be3 {[%clk 0:02:56]}  Rb8 {[%clk 0:02:46]} 10. Rc1 {[%clk 0:02:55]}  O-O {[%clk 0:02:43]} 11. a3 {[%clk 0:02:55]}  b6 {[%clk 0:02:37]} 12. Nd2 {[%clk 0:02:50]}  Nd4 {[%clk 0:02:35]} 13. f4 {[%clk 0:02:44]}  exf4 {[%clk 0:02:32]} 14. Bxf4 {[%clk 0:02:37]}  Bg5 {[%clk 0:02:32]} 15. e3 {[%clk 0:02:17]}  Bxf4 {[%clk 0:02:30]} 16. gxf4 {[%clk 0:02:13]}  Nf5 {[%clk 0:02:29]} 17. Qe2 {[%clk 0:02:06]}  Ba6 {[%clk 0:02:20]} 18. Be4 {[%clk 0:01:54]}  Nd6 {[%clk 0:02:11]} 19. Bf3 {[%clk 0:01:42]}  Ne6 {[%clk 0:02:08]} 20. Rcd1 {[%clk 0:01:35]}  Re8 {[%clk 0:02:07]} 21. Nd5 {[%clk 0:01:32]}  Nd4 {[%clk 0:01:58]} 22. Qg2 {[%clk 0:01:29]}  Nxf3+ {[%clk 0:01:53]} 23. Nxf3 {[%clk 0:01:24]}  Bb7 {[%clk 0:01:53]} 24. e4 {[%clk 0:01:21]}  Bxd5 {[%clk 0:01:52]} 25. exd5 {[%clk 0:01:21]}  Nf5 {[%clk 0:01:52]} 26. Ne5 {[%clk 0:01:10]}  Ne3 {[%clk 0:01:51]} 27. Qf3 {[%clk 0:01:10]}  Nxd1 {[%clk 0:01:48]} 28. Nc6 {[%clk 0:01:06]}  Qd6 {[%clk 0:01:43]} 29. Nxb8 {[%clk 0:01:05]}  Nxb2 {[%clk 0:01:28]} 30. Nc6 {[%clk 0:01:05]}  c4 {[%clk 0:01:18]} 31. dxc4 {[%clk 0:01:01]}  Nxc4 {[%clk 0:01:18]} 32. Rc1 {[%clk 0:00:50]}  Nd2 {[%clk 0:01:15]} 33. Qf2 {[%clk 0:00:43]}  Ne4 {[%clk 0:01:15]} 34. Qf3 {[%clk 0:00:37]}  h6 {[%clk 0:01:15]} 35. Rd1 {[%clk 0:00:34]}  Qc5+ {[%clk 0:01:03]} 36. Rd4 {[%clk 0:00:28]}  Nd6 {[%clk 0:00:59]} 37. Kg2 {[%clk 0:00:24]}  Qc2+ {[%clk 0:00:57]} 38. Qf2 {[%clk 0:00:24]}  Re2 {[%clk 0:00:55]} 0-1


[Site "https://www.chess.com"]

[Event "Titled Tuesday Blitz January 03 Early 2023"]
[White "Mihajlov, Sebastian"]
[Black "Boros, Denes"]
[WhiteFideId "1512110"]
[BlackFideId "722340"]
[WhiteElo "2373"]
[BlackElo "2406"]
[Result "0-1"]
[Round "09"]
[TimeControl "180+2"]
[Date "2023.01.03"]
[WhiteClock "0:00:08"]
[BlackClock "0:00:24"]

1. e4 {[%clk 0:03:00]}  g6 {[%clk 0:02:59]} 2. d4 {[%clk 0:03:01]}  d5 {[%clk 0:03:00]} 3. Nc3 {[%clk 0:03:01]}  dxe4 {[%clk 0:03:00]} 4. Nxe4 {[%clk 0:03:02]}  Bg7 {[%clk 0:03:00]} 5. Nf3 {[%clk 0:02:59]}  Nh6 {[%clk 0:02:47]} 6. c3 {[%clk 0:02:58]}  O-O {[%clk 0:02:46]} 7. Be2 {[%clk 0:02:56]}  b6 {[%clk 0:02:44]} 8. O-O {[%clk 0:02:54]}  Bb7 {[%clk 0:02:44]} 9. Ng3 {[%clk 0:02:54]}  Nd7 {[%clk 0:02:41]} 10. Bf4 {[%clk 0:02:55]}  Ng4 {[%clk 0:02:39]} 11. h3 {[%clk 0:02:49]}  Ngf6 {[%clk 0:02:39]} 12. Bc4 {[%clk 0:02:48]}  c5 {[%clk 0:02:36]} 13. Re1 {[%clk 0:02:46]}  cxd4 {[%clk 0:02:30]} 14. Nxd4 {[%clk 0:02:41]}  e5 {[%clk 0:02:05]} 15. Bxe5 {[%clk 0:02:40]}  Nxe5 {[%clk 0:02:06]} 16. Rxe5 {[%clk 0:02:41]}  Qc7 {[%clk 0:02:06]} 17. Qe2 {[%clk 0:02:37]}  Rae8 {[%clk 0:02:00]} 18. Rxe8 {[%clk 0:02:30]}  Rxe8 {[%clk 0:02:01]} 19. Qf1 {[%clk 0:02:26]}  h5 {[%clk 0:01:51]} 20. Bb5 {[%clk 0:02:23]}  Rd8 {[%clk 0:01:48]} 21. Rd1 {[%clk 0:02:15]}  h4 {[%clk 0:01:47]} 22. Nge2 {[%clk 0:02:08]}  Ne4 {[%clk 0:01:35]} 23. Nf3 {[%clk 0:02:06]}  Rxd1 {[%clk 0:01:21]} 24. Qxd1 {[%clk 0:02:07]}  Qc5 {[%clk 0:01:21]} 25. Qd8+ {[%clk 0:01:54]}  Bf8 {[%clk 0:01:21]} 26. Nfd4 {[%clk 0:01:49]}  Nd6 {[%clk 0:00:54]} 27. Bd3 {[%clk 0:01:14]}  Qd5 {[%clk 0:00:45]} 28. Nf4 {[%clk 0:01:14]}  Qe5 {[%clk 0:00:41]} 29. Qxh4 {[%clk 0:01:02]}  Ne4 {[%clk 0:00:36]} 30. Bxe4 {[%clk 0:00:53]}  Qxe4 {[%clk 0:00:35]} 31. Qg4 {[%clk 0:00:43]}  Bd6 {[%clk 0:00:29]} 32. Nde2 {[%clk 0:00:15]}  Ba6 {[%clk 0:00:28]} 33. Qf3 {[%clk 0:00:07]}  Qb1+ {[%clk 0:00:27]} 34. Kh2 {[%clk 0:00:07]}  Bxe2 {[%clk 0:00:27]} 35. Qxe2 {[%clk 0:00:08]}  Bxf4+ {[%clk 0:00:26]} 36. g3 {[%clk 0:00:09]}  Bh6 {[%clk 0:00:25]} 37. Qe8+ {[%clk 0:00:08]}  Bf8 {[%clk 0:00:24]} 0-1


[Site "https://www.chess.com"]

[Event "Titled Tuesday Blitz January 03 Early 2023"]
[White "Averjanov, Alexey"]
[Black "Baskakov, Egor"]
[WhiteFideId "14109867"]
[BlackFideId "24197866"]
[WhiteElo "2399"]
[BlackElo "2215"]
[Result "1/2-1/2"]
[Round "09"]
[TimeControl "180+2"]
[Date "2023.01.03"]
[WhiteClock "0:02:40"]
[BlackClock "0:02:50"]

1. d4 {[%clk 0:03:00]}  Nf6 {[%clk 0:02:59]} 2. c4 {[%clk 0:02:58]}  e6 {[%clk 0:03:00]} 3. Nf3 {[%clk 0:02:58]}  d5 {[%clk 0:03:01]} 4. e3 {[%clk 0:02:58]}  Be7 {[%clk 0:03:01]} 5. Nbd2 {[%clk 0:02:58]}  Ne4 {[%clk 0:03:01]} 6. g3 {[%clk 0:02:57]}  O-O {[%clk 0:03:01]} 7. Bg2 {[%clk 0:02:57]}  f5 {[%clk 0:03:01]} 8. O-O {[%clk 0:02:57]}  c6 {[%clk 0:03:02]} 9. b3 {[%clk 0:02:57]}  Bd7 {[%clk 0:03:01]} 10. Ne5 {[%clk 0:02:52]}  Be8 {[%clk 0:03:02]} 11. f3 {[%clk 0:02:51]}  Nxd2 {[%clk 0:03:01]} 12. Bxd2 {[%clk 0:02:52]}  Nd7 {[%clk 0:03:01]} 13. Nxd7 {[%clk 0:02:52]}  Qxd7 {[%clk 0:03:02]} 14. f4 {[%clk 0:02:52]}  g5 {[%clk 0:03:01]} 15. Qe1 {[%clk 0:02:51]}  g4 {[%clk 0:03:00]} 16. Bb4 {[%clk 0:02:51]}  h5 {[%clk 0:02:59]} 17. Bxe7 {[%clk 0:02:50]}  Qxe7 {[%clk 0:03:00]} 18. c5 {[%clk 0:02:49]}  Kg7 {[%clk 0:02:58]} 19. Kf2 {[%clk 0:02:46]}  h4 {[%clk 0:02:58]} 20. Rg1 {[%clk 0:02:46]}  Rh8 {[%clk 0:02:58]} 21. b4 {[%clk 0:02:46]}  Bd7 {[%clk 0:02:57]} 22. a4 {[%clk 0:02:43]}  a6 {[%clk 0:02:57]} 23. a5 {[%clk 0:02:40]}  hxg3+ {[%clk 0:02:53]} 24. hxg3 {[%clk 0:02:40]}  Kf6 {[%clk 0:02:50]} 1/2-1/2


[Site "https://www.chess.com"]

[Event "Titled Tuesday Blitz January 03 Early 2023"]
[White "Suleymanli, Suleyman"]
[Black "Galchenko, Matvey"]
[WhiteFideId "13416375"]
[BlackFideId "24175480"]
[WhiteElo "2269"]
[BlackElo "2438"]
[Result "0-1"]
[Round "09"]
[TimeControl "180+2"]
[Date "2023.01.03"]
[WhiteClock "0:00:12"]
[BlackClock "0:00:11"]

1. Nf3 {[%clk 0:03:00]}  c5 {[%clk 0:02:56]} 2. g3 {[%clk 0:03:00]}  g6 {[%clk 0:02:55]} 3. Bg2 {[%clk 0:02:58]}  Bg7 {[%clk 0:02:55]} 4. d4 {[%clk 0:02:56]}  cxd4 {[%clk 0:02:56]} 5. Nxd4 {[%clk 0:02:57]}  Nc6 {[%clk 0:02:56]} 6. Nxc6 {[%clk 0:02:57]}  bxc6 {[%clk 0:02:57]} 7. c4 {[%clk 0:02:57]}  Rb8 {[%clk 0:02:56]} 8. Nd2 {[%clk 0:02:57]}  Nf6 {[%clk 0:02:45]} 9. O-O {[%clk 0:02:57]}  O-O {[%clk 0:02:45]} 10. Nb3 {[%clk 0:02:54]}  a5 {[%clk 0:02:17]} 11. Bf4 {[%clk 0:02:46]}  Ra8 {[%clk 0:02:09]} 12. Qc2 {[%clk 0:02:43]}  a4 {[%clk 0:02:08]} 13. Nc5 {[%clk 0:02:43]}  Qb6 {[%clk 0:02:07]} 14. Be3 {[%clk 0:02:41]}  Qc7 {[%clk 0:02:05]} 15. Bd4 {[%clk 0:02:37]}  a3 {[%clk 0:01:55]} 16. b3 {[%clk 0:02:32]}  d6 {[%clk 0:01:52]} 17. Ne4 {[%clk 0:02:28]}  Bf5 {[%clk 0:01:28]} 18. Bxf6 {[%clk 0:02:11]}  exf6 {[%clk 0:01:24]} 19. Rad1 {[%clk 0:02:06]}  Rfe8 {[%clk 0:01:17]} 20. Qd3 {[%clk 0:02:00]}  Rad8 {[%clk 0:01:13]} 21. h3 {[%clk 0:00:56]}  d5 {[%clk 0:01:05]} 22. cxd5 {[%clk 0:00:56]}  cxd5 {[%clk 0:01:06]} 23. Qc3 {[%clk 0:00:57]}  Qe7 {[%clk 0:00:51]} 24. Nc5 {[%clk 0:00:55]}  Qxe2 {[%clk 0:00:44]} 25. g4 {[%clk 0:00:46]}  Bc8 {[%clk 0:00:32]} 26. Bxd5 {[%clk 0:00:33]}  f5 {[%clk 0:00:19]} 27. Qc4 {[%clk 0:00:23]}  Qxc4 {[%clk 0:00:18]} 28. Bxc4 {[%clk 0:00:24]}  fxg4 {[%clk 0:00:19]} 29. hxg4 {[%clk 0:00:20]}  Bxg4 {[%clk 0:00:19]} 30. Rxd8 {[%clk 0:00:20]}  Rxd8 {[%clk 0:00:20]} 31. b4 {[%clk 0:00:19]}  Rd4 {[%clk 0:00:17]} 32. Rc1 {[%clk 0:00:16]}  Bh6 {[%clk 0:00:18]} 33. Rc3 {[%clk 0:00:14]}  Bd2 {[%clk 0:00:17]} 34. Rd3 {[%clk 0:00:12]}  Rxc4 {[%clk 0:00:10]} 35. Rxd2 {[%clk 0:00:13]}  Rxb4 {[%clk 0:00:11]} 36. Rd3 {[%clk 0:00:13]}  Rb5 {[%clk 0:00:08]} 37. Ne4 {[%clk 0:00:10]}  Bf5 {[%clk 0:00:08]} 38. Nf6+ {[%clk 0:00:08]}  Kg7 {[%clk 0:00:07]} 39. Ne8+ {[%clk 0:00:08]}  Kf8 {[%clk 0:00:08]} 40. Rd8 {[%clk 0:00:07]}  Ke7 {[%clk 0:00:05]} 41. Ra8 {[%clk 0:00:07]}  Be4 {[%clk 0:00:02]} 42. Nc7 {[%clk 0:00:06]}  Rb1+ {[%clk 0:00:03]} 43. Kh2 {[%clk 0:00:05]}  Bxa8 {[%clk 0:00:04]} 44. Nxa8 {[%clk 0:00:06]}  Rb2 {[%clk 0:00:04]} 45. Nc7 {[%clk 0:00:06]}  Rxa2 {[%clk 0:00:05]} 46. Nd5+ {[%clk 0:00:06]}  Kd6 {[%clk 0:00:06]} 47. Nc3 {[%clk 0:00:07]}  Rxf2+ {[%clk 0:00:07]} 48. Kg3 {[%clk 0:00:07]}  Rc2 {[%clk 0:00:08]} 49. Nb5+ {[%clk 0:00:07]}  Ke5 {[%clk 0:00:07]} 50. Nxa3 {[%clk 0:00:08]}  Rc3+ {[%clk 0:00:07]} 51. Kg4 {[%clk 0:00:09]}  Rxa3 {[%clk 0:00:08]} 52. Kg5 {[%clk 0:00:10]}  f5 {[%clk 0:00:09]} 53. Kh6 {[%clk 0:00:11]}  Kf6 {[%clk 0:00:09]} 54. Kxh7 {[%clk 0:00:11]}  Rh3+ {[%clk 0:00:09]} 55. Kg8 {[%clk 0:00:12]}  Rh4 {[%clk 0:00:10]} 56. Kf8 {[%clk 0:00:12]}  Rh8# {[%clk 0:00:11]} 0-1


[Site "https://www.chess.com"]

[Event "Titled Tuesday Blitz January 03 Early 2023"]
[White "Kilic, Eray"]
[Black "Aloma Vidal, Robert"]
[WhiteFideId "44517173"]
[BlackFideId "2260409"]
[WhiteElo "2414"]
[BlackElo "2442"]
[Result "1-0"]
[Round "09"]
[TimeControl "180+2"]
[Date "2023.01.03"]
[WhiteClock "0:01:09"]
[BlackClock "0:00:02"]

1. e4 {[%clk 0:03:00]}  e5 {[%clk 0:02:57]} 2. Nf3 {[%clk 0:03:01]}  Nf6 {[%clk 0:02:57]} 3. Nxe5 {[%clk 0:03:01]}  d6 {[%clk 0:02:57]} 4. Nf3 {[%clk 0:03:01]}  Nxe4 {[%clk 0:02:57]} 5. c4 {[%clk 0:03:01]}  Nc6 {[%clk 0:02:56]} 6. Nc3 {[%clk 0:03:01]}  Nxc3 {[%clk 0:02:53]} 7. dxc3 {[%clk 0:03:02]}  Bf5 {[%clk 0:02:50]} 8. Be2 {[%clk 0:03:00]}  Be7 {[%clk 0:02:50]} 9. O-O {[%clk 0:03:00]}  O-O {[%clk 0:02:50]} 10. Re1 {[%clk 0:03:01]}  Bf6 {[%clk 0:02:47]} 11. Be3 {[%clk 0:03:00]}  Re8 {[%clk 0:02:46]} 12. Qb3 {[%clk 0:02:59]}  Qd7 {[%clk 0:02:38]} 13. Rad1 {[%clk 0:02:58]}  b6 {[%clk 0:02:29]} 14. Qa4 {[%clk 0:02:40]}  Ne5 {[%clk 0:02:11]} 15. Qxd7 {[%clk 0:02:37]}  Nxd7 {[%clk 0:02:01]} 16. Nd4 {[%clk 0:02:36]}  Be4 {[%clk 0:01:55]} 17. Nb5 {[%clk 0:02:33]}  Rec8 {[%clk 0:01:53]} 18. Bg4 {[%clk 0:02:32]}  Bc6 {[%clk 0:01:49]} 19. Bd4 {[%clk 0:02:28]}  a6 {[%clk 0:01:35]} 20. a4 {[%clk 0:02:12]}  axb5 {[%clk 0:01:24]} 21. axb5 {[%clk 0:02:11]}  Bxb5 {[%clk 0:01:04]} 22. Bxf6 {[%clk 0:02:11]}  Bc6 {[%clk 0:00:56]} 23. Bd4 {[%clk 0:02:10]}  Re8 {[%clk 0:00:55]} 24. b4 {[%clk 0:02:10]}  Ne5 {[%clk 0:00:50]} 25. Be2 {[%clk 0:02:09]}  f6 {[%clk 0:00:47]} 26. f4 {[%clk 0:02:07]}  Ng6 {[%clk 0:00:44]} 27. g3 {[%clk 0:02:06]}  Ra2 {[%clk 0:00:41]} 28. Bf1 {[%clk 0:02:05]}  Rxe1 {[%clk 0:00:41]} 29. Rxe1 {[%clk 0:02:06]}  Kf8 {[%clk 0:00:35]} 30. c5 {[%clk 0:02:03]}  bxc5 {[%clk 0:00:34]} 31. bxc5 {[%clk 0:02:03]}  Ne7 {[%clk 0:00:34]} 32. cxd6 {[%clk 0:02:02]}  cxd6 {[%clk 0:00:34]} 33. Re6 {[%clk 0:01:54]}  Nf5 {[%clk 0:00:33]} 34. Bf2 {[%clk 0:01:52]}  Bd5 {[%clk 0:00:30]} 35. Re1 {[%clk 0:01:51]}  h5 {[%clk 0:00:28]} 36. h3 {[%clk 0:01:47]}  h4 {[%clk 0:00:19]} 37. g4 {[%clk 0:01:43]}  Ng3 {[%clk 0:00:19]} 38. Bb5 {[%clk 0:01:23]}  g5 {[%clk 0:00:05]} 39. fxg5 {[%clk 0:01:20]}  fxg5 {[%clk 0:00:05]} 40. c4 {[%clk 0:01:14]}  Bf3 {[%clk 0:00:03]} 41. c5 {[%clk 0:01:12]}  dxc5 {[%clk 0:00:03]} 42. Bxc5+ {[%clk 0:01:13]}  Kg7 {[%clk 0:00:03]} 43. Bd4+ {[%clk 0:01:11]}  Kg6 {[%clk 0:00:02]} 44. Bd3+ {[%clk 0:01:09]} 1-0


[Site "https://www.chess.com"]

[Event "Titled Tuesday Blitz January 03 Early 2023"]
[White "Rustemov, Alexander"]
[Black "Papp, Levente"]
[WhiteFideId "4119002"]
[BlackFideId "751243"]
[WhiteElo "2525"]
[BlackElo "2353"]
[Result "1/2-1/2"]
[Round "09"]
[TimeControl "180+2"]
[Date "2023.01.03"]
[WhiteClock "0:00:18"]
[BlackClock "0:00:07"]

1. d4 {[%clk 0:02:55]}  Nf6 {[%clk 0:02:59]} 2. c4 {[%clk 0:02:54]}  e6 {[%clk 0:02:57]} 3. Nf3 {[%clk 0:02:55]}  Be7 {[%clk 0:02:52]} 4. Nc3 {[%clk 0:02:53]}  d5 {[%clk 0:02:52]} 5. Bg5 {[%clk 0:02:52]}  h6 {[%clk 0:02:51]} 6. Bxf6 {[%clk 0:02:51]}  Bxf6 {[%clk 0:02:51]} 7. e3 {[%clk 0:02:52]}  O-O {[%clk 0:02:51]} 8. Rc1 {[%clk 0:02:52]}  c6 {[%clk 0:02:47]} 9. Bd3 {[%clk 0:02:52]}  Nd7 {[%clk 0:02:46]} 10. O-O {[%clk 0:02:53]}  dxc4 {[%clk 0:02:46]} 11. Bxc4 {[%clk 0:02:53]}  e5 {[%clk 0:02:47]} 12. h3 {[%clk 0:02:54]}  Qe7 {[%clk 0:02:45]} 13. d5 {[%clk 0:02:47]}  Nb6 {[%clk 0:02:32]} 14. Qb3 {[%clk 0:02:46]}  Bf5 {[%clk 0:01:52]} 15. Rfd1 {[%clk 0:02:39]}  Nxc4 {[%clk 0:01:43]} 16. Qxc4 {[%clk 0:02:38]}  Rac8 {[%clk 0:01:25]} 17. e4 {[%clk 0:02:34]}  Bg6 {[%clk 0:01:25]} 18. dxc6 {[%clk 0:02:31]}  Rxc6 {[%clk 0:01:16]} 19. Nd5 {[%clk 0:02:28]}  Qe6 {[%clk 0:01:11]} 20. Qe2 {[%clk 0:02:12]}  Rfc8 {[%clk 0:01:06]} 21. Rxc6 {[%clk 0:02:12]}  Rxc6 {[%clk 0:01:06]} 22. b3 {[%clk 0:02:02]}  Kh7 {[%clk 0:01:04]} 23. Nxf6+ {[%clk 0:01:32]}  Qxf6 {[%clk 0:01:04]} 24. Ne1 {[%clk 0:01:26]}  Qe7 {[%clk 0:00:29]} 25. f3 {[%clk 0:01:25]}  Qc5+ {[%clk 0:00:27]} 26. Qf2 {[%clk 0:01:23]}  Qa3 {[%clk 0:00:15]} 27. g4 {[%clk 0:01:21]}  Rc7 {[%clk 0:00:08]} 28. Kg2 {[%clk 0:01:19]}  f6 {[%clk 0:00:08]} 29. Qd2 {[%clk 0:01:17]}  Qc5 {[%clk 0:00:07]} 30. Nd3 {[%clk 0:01:16]}  Qd4 {[%clk 0:00:07]} 31. Nf2 {[%clk 0:01:15]}  Qc5 {[%clk 0:00:06]} 32. Qe2 {[%clk 0:01:08]}  Bf7 {[%clk 0:00:06]} 33. Rd2 {[%clk 0:01:07]}  Qc3 {[%clk 0:00:06]} 34. Qd3 {[%clk 0:01:05]}  Qc5 {[%clk 0:00:06]} 35. Qd6 {[%clk 0:01:04]}  Qc3 {[%clk 0:00:07]} 36. Rd3 {[%clk 0:01:02]}  Qc2 {[%clk 0:00:07]} 37. Rd2 {[%clk 0:00:58]}  Qc3 {[%clk 0:00:08]} 38. Qd3 {[%clk 0:00:52]}  Qc5 {[%clk 0:00:08]} 39. Nh1 {[%clk 0:00:50]}  a5 {[%clk 0:00:08]} 40. Ng3 {[%clk 0:00:50]}  b5 {[%clk 0:00:08]} 41. Nf5 {[%clk 0:00:49]}  a4 {[%clk 0:00:09]} 42. bxa4 {[%clk 0:00:46]}  bxa4 {[%clk 0:00:10]} 43. h4 {[%clk 0:00:44]}  a3 {[%clk 0:00:09]} 44. h5 {[%clk 0:00:44]}  Qc3 {[%clk 0:00:07]} 45. Qxc3 {[%clk 0:00:42]}  Rxc3 {[%clk 0:00:07]} 46. Rd7 {[%clk 0:00:43]}  Kg8 {[%clk 0:00:07]} 47. Rd8+ {[%clk 0:00:37]}  Kh7 {[%clk 0:00:07]} 48. Rd7 {[%clk 0:00:37]}  Kg8 {[%clk 0:00:07]} 49. Kg3 {[%clk 0:00:34]}  Rc2 {[%clk 0:00:06]} 50. Rd8+ {[%clk 0:00:33]}  Kh7 {[%clk 0:00:06]} 51. Rd7 {[%clk 0:00:32]}  Kg8 {[%clk 0:00:06]} 52. Rd8+ {[%clk 0:00:18]}  Kh7 {[%clk 0:00:06]} 53. Rd7 {[%clk 0:00:18]}  Kg8 {[%clk 0:00:07]} 1/2-1/2


[Site "https://www.chess.com"]